bitfinex-derivatives/quotes_ETHF0:USTF0_20250518
["timestamp","ask_amount","ask_price","bid_price","bid_amount"]
[1747568027634,0.6573,2509.7,2509.1,1.58149592]
[1747568027833,1.3749,2509.6,2509.2,1.9966]
[1747568028035,0.6775,2509.9,2509.3,9.1546]
[1747568028243,2.0524,2509.9,2509.4,1.3336]
[1747568028440,2.0524,2509.9,2509.5,3.8701]
[1747568028642,2.0524,2509.9,2509.6,1.3336]
[1747568028841,1.3749,2509.9,2509.6,1.9966]
[1747568029145,1.3749,2509.9,2509.6,6.5763611]
[1747568029338,1.3749,2509.9,2509.7,1.3336]
[1747568030043,1.3749,2509.9,2509.6,8.492]
[1747568030540,0.6407,2509.8,2509.6,8.492]
[1747568030730,1.3749,2509.7,2509.6,8.492]
[1747568031343,1.3749,2509.7,2509.6,0.663]
[1747568037943,1.3749,2509.7,2509.3,0.6258]
[1747568038243,0.6528,2509.6,2509.3,0.6455]
[1747568038441,1.295,2509.5,2509.2,3.2078]
[1747568038838,0.6215,2509.4,2509.2,3.2078]
[1747568039040,1.295,2509.5,2509.3,0.6455]
[1747568039241,1.295,2509.5,2509.3,6.32157756]
[1747568039443,0.6528,2509.6,2509.3,6.98107756]
[1747568039642,0.6528,2509.6,2509.4,1.3503]
[1747568039838,1.9478,2509.6,2509.4,1.3503]
[1747568041445,11.687926,2510.1,2509.4,1.3503]
[1747568041648,2.6214,2510.0,2509.5,4.20668784]
[1747568041944,1.2949,2509.9,2509.6,1.3114]
[1747568043650,1.2949,2509.9,2509.3,2.48902694]
[1747568043843,1.2949,2509.9,2509.3,3.79402694]
[1747568044147,1.2949,2509.9,2509.4,5.74284832]
[1747568044644,1.2949,2509.9,2509.4,7.04784832]
[1747568046450,1.2949,2509.9,2509.5,1.14751972]
[1747568047647,1.2949,2509.9,2509.6,1.14751972]
[1747568048244,4.3529,2509.9,2509.6,1.14751972]
[1747568049048,1.2574,2509.8,2509.6,1.14751972]
[1747568049550,1.2574,2509.8,2509.7,1.14751972]
[1747568051551,1.2574,2509.8,2509.5,1.3639]
[1747568053451,1.2574,2509.8,2509.6,1.1487624]
[1747568055355,1.2574,2509.8,2509.7,1.1487624]
[1747568056154,4.3154,2509.8,2509.7,1.1487624]
[1747568056350,4.3154,2509.8,2509.4,1.3369]
[1747568056652,4.3154,2509.8,2509.3,11.6463]
[1747568056653,1.3456,2509.7,2509.5,2.48575219]
[1747568058149,1.3456,2509.7,2509.6,1.3369]
[1747568058555,1.3456,2509.7,2509.6,2.48575219]
[1747568059058,0.664126,2509.9,2509.6,2.48575219]
[1747568059261,2.014426,2509.9,2509.7,1.911]
[1747568059559,0.664126,2509.8,2509.7,1.911]
[1747568059756,0.664126,2509.8,2509.7,0.6368]
[1747568059951,0.664126,2509.8,2509.7,1.78565219]
[1747568061158,0.664126,2509.8,2509.7,4.99345219]
[1747568063463,2.024926,2510.0,2509.7,4.99345219]
[1747568063760,2.672326,2510.0,2509.7,1.78565219]
[1747568063960,1.3608,2509.9,2509.7,1.78565219]
[1747568064356,1.3608,2509.9,2509.8,1.14885219]
[1747568064957,1.964326,2510.0,2509.8,1.14885219]
[1747568065159,1.964326,2510.0,2509.9,1.14885219]
[1747568065458,3.265726,2510.0,2509.9,1.14885219]
[1747568065762,2.612926,2510.0,2509.9,1.14885219]
[1747568066057,0.664126,2510.0,2509.9,1.14885219]
[1747568067264,1.3014,2510.2,2509.9,1.14885219]
[1747568068365,1.3014,2510.2,2509.7,5.0315361]
[1747568070268,1.3014,2510.2,2509.8,1.14693233]
[1747568072370,4.3594,2510.2,2509.9,1.14693233]
[1747568073167,1.3144,2510.1,2509.9,1.14693233]
[1747568073570,1.3144,2510.1,2509.7,5.2196]
[1747568073868,1.3144,2510.1,2509.8,1.3728]
[1747568074376,4.3724,2510.1,2509.8,1.3728]
[1747568074968,1.365,2510.0,2509.8,1.3728]
[1747568075169,0.6657,2509.9,2509.8,1.3728]
[1747568075471,1.33113731,2509.9,2509.8,1.3728]
[1747568076781,1.33113731,2509.9,2509.8,2.50855155]
[1747568079376,0.6657,2509.9,2509.8,2.50855155]
[1747568080373,1.9998,2509.9,2509.8,2.50855155]
[1747568082175,5.0578,2509.9,2509.8,2.50855155]
[1747568083180,1.9998,2509.9,2509.8,2.50855155]
[1747568093686,2.66531931,2509.9,2509.8,2.50855155]
[1747568097890,1.9998,2509.9,2509.8,2.50855155]
[1747568099485,1.9998,2509.9,2509.8,5.71635155]
[1747568102887,0.99818729,2510.0,2509.8,5.71635155]
[1747568103088,0.99818729,2510.0,2509.9,1.2566]
[1747568104292,0.99818729,2510.0,2509.9,6.89368984]
[1747568104488,0.99818729,2510.0,2509.9,14.64368984]
[1747568104792,1.3277383,2510.3,2509.9,60.44368984]
[1747568104996,1.3277383,2510.3,2510.2,3.2078]
[1747568105197,0.84988225,2510.3,2510.2,3.2078]
[1747568105386,0.84988225,2510.3,2510.2,12.44303839]
[1747568105786,0.84988225,2510.3,2510.2,13.77043839]
[1747568106198,0.84988225,2510.3,2510.2,14.90618994]
[1747568107602,0.5774263,2510.3,2510.2,14.90618994]
[1747568108505,0.5774263,2510.3,2510.2,11.69838994]
[1747568108801,1.92697205,2511.0,2510.2,14.90618994]
[1747568109097,1.92697205,2511.0,2510.9,3.2078]
[1747568112600,0.66497205,2511.0,2510.9,7.55752267]
[1747568112805,0.66497205,2511.0,2510.9,8.24572267]
[1747568113002,0.66497205,2511.0,2510.9,9.52592267]
[1747568113713,0.6861,2511.2,2510.9,9.52592267]
[1747568113899,0.6861,2511.2,2511.0,1.2802]
[1747568116918,1.3041,2511.1,2511.0,1.2802]
[1747568128420,0.6861,2511.2,2511.0,1.2802]
[1747568128618,3.2078,2511.9,2511.1,15.49]
[1747568128818,2.6667,2511.7,2511.5,3.2078]
[1747568129018,1.3359,2511.6,2511.5,3.2078]
[1747568129620,0.66497205,2512.0,2511.5,18.6978]
[1747568129823,0.66497205,2512.0,2511.6,1.258]
[1747568130119,2.6583,2511.9,2511.6,1.258]
[1747568130516,2.6583,2511.9,2511.7,4.15747965]
[1747568131316,1.2585,2511.8,2511.7,4.15747965]
[1747568133121,4.3165,2511.8,2511.7,15.486]
[1747568133632,4.3165,2511.8,2511.5,3.2078]
[1747568133927,1.2585,2511.7,2511.5,3.2078]
[1747568134119,4.3165,2511.7,2511.5,3.2078]
[1747568135823,3.058,2511.7,2511.6,7.742]
[1747568136224,1.9748,2511.8,2511.6,7.742]
[1747568137830,1.3636,2511.7,2511.6,7.742]
[1747568138432,3.2078,2512.2,2511.6,7.742]
[1747568138626,1.9846,2512.1,2511.7,1.3133]
[1747568138827,1.3636,2512.0,2511.7,1.3133]
[1747568139223,4.4216,2512.0,2511.7,1.3133]
[1747568139729,1.3636,2511.9,2511.7,1.3133]
[1747568141433,1.3636,2511.9,2511.6,7.742]
[1747568141831,1.3636,2511.9,2511.7,4.36105457]
[1747568143136,0.09218003,2511.8,2511.7,4.36105457]
[1747568143431,0.72128003,2511.8,2511.7,4.36105457]
[1747568144833,0.09218003,2511.8,2511.7,4.36105457]
[1747568145027,0.09218003,2511.8,2511.7,5.63505457]
[1747568145232,1.3636,2511.9,2511.7,6.75949664]
[1747568146433,1.3636,2511.9,2511.7,5.63505457]
[1747568146633,1.3636,2511.9,2511.8,1.2445]
[1747568147437,1.3636,2511.9,2511.8,4.4523]
[1747568147933,1.3636,2511.9,2511.8,3.2078]
[1747568148239,1.45578003,2511.9,2511.8,4.33220413]
[1747568149344,1.3636,2511.9,2511.8,4.33220413]
[1747568151146,4.4216,2511.9,2511.8,1.12440413]
[1747568152033,4.4216,2511.9,2511.7,15.481]
[1747568152239,1.2671,2511.8,2511.7,15.481]
[1747568152847,1.2671,2511.8,2511.7,7.741]
[1747568153237,4.3251,2511.8,2511.7,7.741]
[1747568154048,4.3251,2511.8,2511.5,3.8381]
[1747568154344,1.9603,2511.7,2511.6,12.36179171]
[1747568154546,1.9603,2511.7,2511.6,13.48817038]
[1747568157547,0.09218003,2511.9,2511.6,13.48817038]
[1747568157743,0.09218003,2511.9,2511.8,3.2078]
[1747568157948,0.09218003,2511.9,2511.8,4.4721]
[1747568158142,0.09218003,2511.9,2511.8,5.1315]
[1747568158453,1.9599,2512.1,2511.8,5.1315]
[1747568158746,1.9599,2512.1,2511.9,2.48557867]
[1747568158936,1.9599,2512.1,2512.0,1.3592]
[1747568159135,0.66497205,2512.2,2512.0,1.3592]
[1747568159333,0.66497205,2512.2,2512.0,5.65825573]
[1747568159942,0.66497205,2512.2,2511.9,1.12637867]
[1747568160241,1.8754,2512.1,2511.9,8.86537867]
[1747568160545,1.2442,2512.0,2511.9,1.12637867]
[1747568160739,1.2442,2512.0,2511.7,1.17957271]
[1747568161346,0.09218003,2511.9,2511.7,1.17957271]
[1747568161834,1.9832,2511.8,2511.7,1.17957271]
[1747568162545,1.9832,2511.8,2511.7,2.29611623]
[1747568162747,6.9832,2511.8,2511.7,2.29611623]
[1747568163139,10.0412,2511.8,2511.7,2.29611623]
[1747568164150,10.0412,2511.8,2511.3,4.4694]
[1747568164353,1.2798,2511.7,2511.3,4.4694]
[1747568164544,0.6691,2511.6,2511.3,4.4694]
[1747568164744,1.2798,2511.5,2511.3,5.1395]
[1747568165053,1.2798,2511.5,2511.4,1.11648302]
[1747568166249,4.3378,2511.5,2511.4,1.11648302]
[1747568168149,4.3378,2511.5,2511.3,3.2078]
[1747568168351,1.2545,2511.4,2511.3,3.2078]
[1747568169155,4.3125,2511.4,2511.3,3.2078]
[1747568169851,4.3125,2511.4,2511.3,4.323837]
[1747568170753,4.3125,2511.4,2511.3,1.116037]
[1747568171254,4.9775,2511.4,2511.3,1.116037]
[1747568172859,4.9775,2511.4,2511.1,1.17957271]
[1747568172860,4.9775,2511.4,2510.9,10.9478]
[1747568173157,1.2697,2511.3,2510.9,3.2078]
[1747568173356,1.2697,2511.3,2511.0,1.353]
[1747568173657,0.6625,2511.2,2511.0,1.353]
[1747568173848,1.2441,2511.1,2511.0,1.353]
[1747568176263,0.665,2511.4,2511.0,1.353]
[1747568176458,1.9091,2511.4,2511.1,0.689]
[1747568176655,1.9091,2511.4,2511.2,1.3423]
[1747568176857,1.3652,2511.3,2511.1,0.689]
[1747568177052,4.4232,2511.3,2511.1,0.689]
[1747568177462,1.3652,2511.2,2511.1,0.689]
[1747568178066,4.4232,2511.2,2511.1,0.689]
[1747568179265,4.4232,2511.2,2510.9,3.2078]
[1747568179468,2.0486,2511.1,2510.9,3.2078]
[1747568179667,19.9961,2511.0,2510.7,1.17957271]
[1747568179859,1.3083,2510.9,2510.7,1.17957271]
[1747568180270,6.3083,2510.9,2510.7,1.17957271]
[1747568180566,15.48,2510.8,2510.7,1.17957271]
[1747568180767,16.7883,2510.8,2510.7,1.17957271]
[1747568180963,6.3083,2510.8,2510.7,1.17957271]
[1747568181162,24.8463,2510.8,2510.7,1.17957271]
[1747568183164,24.8463,2510.8,2510.3,1.3263]
[1747568183466,1.3027,2510.7,2510.6,0.6259]
[1747568184068,4.3607,2510.7,2510.3,3.2078]
[1747568184267,0.6533,2510.6,2510.0,13.58]
[1747568184467,1.3027,2510.5,2510.1,1.3611]
[1747568185066,4.3607,2510.5,2510.1,1.3611]
[1747568185974,3.058,2510.5,2510.1,1.3611]
[1747568186169,1.2808,2510.5,2510.1,1.3611]
[1747568187170,3.2078,2510.7,2510.1,1.3611]
[1747568187386,3.2078,2510.7,2510.2,4.55328425]
[1747568187568,3.2078,2510.7,2510.3,1.2961]
[1747568187765,3.2078,2510.7,2510.4,0.6273]
[1747568187967,3.2078,2510.7,2510.5,1.2961]
[1747568188675,3.87277205,2510.8,2510.5,1.2961]
[1747568188970,3.2078,2510.8,2510.5,1.2961]
[1747568189171,6.2658,2510.8,2510.5,1.2961]
[1747568190169,3.2078,2510.8,2510.5,1.2961]
[1747568191075,1.8768,2510.9,2510.5,1.2961]
[1747568193369,0.66497205,2511.1,2510.5,4.5039]
[1747568193668,1.90937205,2511.1,2510.6,4.22081086]
[1747568193867,1.90937205,2511.1,2510.6,5.53951086]
[1747568194071,1.90937205,2511.1,2510.7,1.3187]
[1747568194375,1.90937205,2511.1,2510.8,0.682]
[1747568194566,1.2444,2511.0,2510.9,1.3187]
[1747568195778,1.2444,2511.0,2510.8,1.3642]
[1747568196276,4.3024,2511.0,2510.8,0.6822]
[1747568196471,3.2078,2510.9,2510.6,1.347]
[1747568196777,1.3684,2510.9,2510.7,0.6463]
[1747568196974,1.3684,2510.8,2510.7,0.6463]
[1747568198270,4.4264,2510.8,2510.7,0.6463]
[1747568199079,1.3684,2510.8,2510.7,0.6463]
[1747568199776,0.09218003,2511.1,2510.7,0.6463]
[1747568200080,1.3267,2511.0,2510.7,0.6463]
[1747568200277,3.8532,2511.2,2510.8,4.26412083]
[1747568200486,3.8532,2511.2,2510.9,8.3808]
[1747568201479,3.2078,2511.2,2510.9,8.3808]
[1747568202180,6.2658,2511.2,2510.9,8.3808]
[1747568203082,0.66497205,2511.3,2510.9,8.3808]
[1747568204386,1.9695,2511.4,2510.9,8.3808]
[1747568204583,1.3506,2511.3,2510.9,8.3808]
[1747568204784,1.3506,2511.3,2510.9,0.6408]
[1747568205092,2.0291,2511.3,2510.8,10.9478]
[1747568205278,2.0291,2511.3,2510.9,7.74]
[1747568205478,2.0291,2511.3,2511.0,1.10162087]
[1747568205479,1.3506,2511.2,2511.0,1.10162087]
[1747568206088,4.4086,2511.2,2511.0,1.10162087]
[1747568206486,1.3506,2511.1,2511.0,1.10162087]
[1747568207181,1.3506,2511.1,2510.9,10.9478]
[1747568208990,0.6785,2511.3,2510.9,10.9478]
[1747568209290,1.2837,2511.2,2510.9,10.9478]
[1747568210090,4.3417,2511.2,2510.9,10.9478]
[1747568210591,1.3386,2511.1,2510.9,10.9478]
[1747568213200,1.43078003,2511.1,2510.9,10.9478]
[1747568213589,1.43078003,2511.1,2510.9,3.2078]
[1747568213996,0.6729,2511.0,2510.9,3.2078]
[1747568215098,1.9638,2511.0,2510.9,4.5685]
[1747568217505,1.9638,2511.0,2510.9,3.2078]
[1747568217697,1.9638,2511.0,2510.6,4.38737271]
[1747568217898,0.6729,2511.0,2510.9,1.10273943]
[1747568219208,0.6729,2511.0,2510.8,0.665]
[1747568220208,0.6729,2511.0,2510.9,1.3233]
[1747568221107,0.66497205,2511.2,2510.9,1.3233]
[1747568221309,1.34577205,2511.2,2510.9,1.3233]
[1747568222312,4.40377205,2511.2,2510.8,0.665]
[1747568223113,4.40377205,2511.2,2510.6,4.38737271]
[1747568223418,8.40397205,2511.1,2510.6,4.38737271]
[1747568223714,8.40397205,2511.1,2510.6,3.2078]
[1747568224118,11.46197205,2511.1,2510.6,3.2078]
[1747568224617,11.46197205,2511.1,2510.6,4.4937]
[1747568224818,11.46197205,2511.1,2510.7,1.10455175]
[1747568226512,11.46197205,2511.1,2510.6,4.4937]
[1747568227618,0.66497205,2510.9,2510.6,4.4937]
[1747568228022,0.66497205,2510.9,2510.7,1.3461]
[1747568228716,0.66497205,2510.9,2510.7,4.5539]
[1747568228916,0.66497205,2510.9,2510.8,1.2925]
[1747568229226,0.66497205,2510.9,2510.8,1.10412643]
[1747568230019,0.66497205,2510.9,2510.7,3.2078]
[1747568231117,0.66497205,2510.9,2510.5,10.88057271]
[1747568231325,0.66497205,2510.9,2510.5,14.08837271]
[1747568231923,0.66497205,2510.9,2510.6,1.10440999]
[1747568232220,3.72297205,2510.9,2510.6,1.10440999]
[1747568232419,3.2078,2510.8,2510.6,1.10440999]
[1747568232619,18.6858,2510.8,2510.6,1.10440999]
[1747568232820,0.6321,2510.7,2510.6,1.10440999]
[1747568233020,0.6321,2510.7,2510.4,1.17957271]
[1747568233324,3.6901,2510.7,2510.4,1.17957271]
[1747568233526,1.3013,2510.6,2510.4,1.17957271]
[1747568234216,4.3593,2510.6,2510.4,1.17957271]
[1747568234728,1.3212,2510.5,2510.4,1.17957271]
[1747568235027,1.3212,2510.5,2510.2,5.2214]
[1747568235224,4.3792,2510.5,2510.2,5.2214]
[1747568235724,1.3212,2510.4,2510.3,1.3343]
[1747568236329,1.3212,2510.4,2510.3,2.43811715]
[1747568237829,0.66477235,2510.5,2510.3,2.43811715]
[1747568238030,0.66477235,2510.5,2510.4,1.2735]
[1747568238232,0.66477235,2510.5,2510.4,1.9157]
[1747568238532,0.66477235,2510.5,2510.4,3.01951715]
[1747568239332,0.66477235,2510.5,2510.4,8.01951715]
[1747568239535,0.99569127,2510.7,2510.4,12.49484111]
[1747568239729,0.99569127,2510.7,2510.6,3.2078]
[1747568240024,0.99569127,2510.7,2510.6,7.68312396]
[1747568240229,0.99569127,2510.7,2510.6,15.06044111]
[1747568241533,1.2705,2511.2,2510.6,15.06044111]
[1747568241834,1.2705,2511.2,2510.9,3.2078]
[1747568242131,1.2705,2511.2,2511.0,1.3043]
[1747568242734,1.2705,2511.2,2511.0,1.9623]
[1747568243031,1.9296,2511.2,2511.0,1.9623]
[1747568244734,1.3558,2511.1,2511.0,1.9623]
[1747568245334,1.3558,2511.1,2510.9,3.2078]
[1747568247237,0.6591,2511.2,2511.0,1.9704]
[1747568247536,1.9732,2511.2,2511.1,1.3356]
[1747568247835,1.9732,2511.2,2511.1,1.9837]
[1747568249937,1.9732,2511.2,2510.9,3.2078]
[1747568250124,1.2859,2511.1,2510.9,3.2078]
[1747568250327,1.2859,2511.1,2510.7,1.18368277]
[1747568251139,4.3439,2511.1,2510.7,1.18368277]
[1747568251437,1.2859,2511.0,2510.7,1.18368277]
[1747568251628,1.2859,2511.0,2510.6,1.2745]
[1747568251824,0.6727,2510.9,2510.6,1.2745]
[1747568252131,1.2859,2510.8,2510.6,1.2745]
[1747568252741,1.9088,2510.8,2510.5,9.57078277]
[1747568252934,1.9088,2510.8,2510.6,1.09407415]
[1747568253237,1.2925,2510.7,2510.6,1.09407415]
[1747568254436,1.2925,2510.7,2510.6,2.35407415]
[1747568257041,1.2925,2510.7,2510.6,1.26]
[1747568257743,1.2925,2510.7,2510.5,0.6481]
[1747568258244,4.3505,2510.7,2510.5,0.6481]
[1747568258842,1.3103,2510.6,2510.5,0.6481]
[1747568260045,1.3103,2510.6,2510.5,1.7421805]
[1747568261441,1.3103,2510.6,2510.5,3.1208805]
[1747568268248,1.3103,2510.6,2510.5,1.7421805]
[1747568275545,0.6727,2510.9,2510.5,1.7421805]
[1747568275746,1.2817,2510.8,2510.6,1.33]
[1747568276741,1.2817,2510.8,2510.7,1.0940805]
[1747568277046,1.3324,2510.9,2510.7,4.3018805]
[1747568277253,0.99569127,2511.0,2510.8,1.2525]
[1747568277749,0.99569127,2511.0,2510.9,0.6397]
[1747568277952,0.99569127,2511.0,2510.9,1.7337805]
[1747568278150,4.05369127,2511.0,2510.9,1.7337805]
[1747568278952,4.05369127,2511.0,2510.9,6.29415665]
[1747568279154,0.99569127,2511.0,2510.9,6.29415665]
[1747568280846,0.99569127,2511.0,2510.9,1.0940805]
[1747568281153,4.05369127,2511.0,2510.9,1.0940805]
[1747568281452,7.26149127,2511.0,2510.9,1.0940805]
[1747568281652,8.61949127,2511.0,2510.9,1.0940805]
[1747568283354,5.41169127,2511.0,2510.9,1.0940805]
[1747568287758,13.14769127,2511.0,2510.9,1.0940805]
[1747568288351,16.35549127,2511.0,2510.9,1.0940805]
[1747568288662,21.35549127,2511.0,2510.1,10.9438]
[1747568288857,3.2078,2510.7,2510.1,10.9438]
[1747568289053,3.2078,2510.7,2510.1,3.2078]
[1747568289054,2.6571,2510.6,2510.1,3.2078]
[1747568289255,1.3554,2510.5,2510.1,3.2078]
[1747568290155,4.4134,2510.5,2510.1,3.2078]
[1747568290360,1.3295,2510.4,2510.1,3.2078]
[1747568291263,4.3875,2510.4,2510.1,3.2078]
[1747568293261,7.5953,2510.4,2510.0,3.16516295]
[1747568297173,8.59099127,2510.4,2510.0,3.16516295]
[1747568297872,13.59099127,2510.4,2509.7,3.2078]
[1747568298065,9.0387,2510.3,2509.7,3.2078]
[1747568298372,9.7071,2510.2,2509.7,3.2078]
[1747568298575,1.2886,2510.1,2509.7,3.2078]
[1747568299271,19.8196,2510.1,2509.7,3.2078]
[1747568299571,4.3466,2510.1,2509.8,1.3175]
[1747568299771,4.3466,2510.1,2509.8,2.0067]
[1747568299971,4.3466,2510.1,2509.9,0.6691]
[1747568300171,1.2886,2510.1,2510.0,1.3175]
[1747568300370,1.2886,2510.1,2509.9,0.6691]
[1747568300874,1.2886,2510.1,2509.9,1.9866]
[1747568301272,4.3466,2510.1,2509.9,1.9866]
[1747568302369,1.3693,2510.0,2509.7,3.2078]
[1747568303176,4.4273,2510.0,2509.7,3.2078]
[1747568303573,1.3693,2509.9,2509.7,3.2078]
[1747568303775,0.6565,2509.8,2509.7,3.2078]
[1747568303975,1.3301,2509.8,2509.7,3.2078]
[1747568304274,4.3881,2509.8,2509.7,3.2078]
[1747568312384,5.7538,2509.8,2509.7,3.2078]
[1747568312573,5.7538,2509.8,2509.6,1.257]
[1747568315380,5.0802,2509.8,2509.6,1.257]
[1747568315579,3.058,2509.8,2509.6,1.257]
[1747568316386,2.37584333,2509.9,2509.6,1.257]
[1747568316589,3.68814333,2509.9,2509.6,1.257]
[1747568318278,6.74614333,2509.9,2509.6,1.257]
[1747568319087,3.68814333,2509.9,2509.6,1.257]
[1747568320089,6.74614333,2509.9,2509.6,1.257]
[1747568321280,3.68814333,2509.9,2509.6,1.257]
[1747568321883,1.334,2509.8,2509.6,1.257]
[1747568322086,0.6522,2509.7,2509.6,1.257]
[1747568322989,1.9212,2509.7,2509.6,1.257]
[1747568323185,4.9792,2509.7,2509.6,1.257]
[1747568324093,1.9212,2509.7,2509.6,1.257]
[1747568325191,4.9792,2509.7,2509.6,1.257]
[1747568327079,3.058,2509.7,2509.6,1.257]
[1747568327287,2.37584333,2509.8,2509.6,1.257]
[1747568328091,3.62964333,2509.9,2509.6,1.257]
[1747568329989,1.2613,2509.8,2509.6,1.257]
[1747568330395,1.2613,2509.8,2509.5,3.877]
[1747568330787,3.63714333,2509.8,2509.5,3.877]
[1747568331491,1.2613,2509.7,2509.5,3.877]
[1747568336293,1.2613,2509.7,2509.5,3.2078]
[1747568336494,1.3276,2509.6,2509.5,3.2078]
[1747568337391,1.3276,2509.6,2509.5,4.24900794]
[1747568338085,2.643,2509.6,2509.5,4.24900794]
[1747568338290,2.643,2509.6,2509.5,5.61150794]
[1747568338595,1.9531,2509.6,2509.5,5.61150794]
[1747568338784,2.37584333,2509.7,2509.5,5.61150794]
[1747568338991,2.37584333,2509.7,2509.6,1.3625]
[1747568339488,3.69154333,2509.7,2509.6,1.3625]
[1747568340896,1.3157,2509.7,2509.6,1.3625]
[1747568344399,1.3157,2509.7,2509.6,2.15918]
[1747568345291,2.31139127,2509.7,2509.6,2.15918]
[1747568345899,4.6872346,2509.7,2509.6,2.15918]
[1747568349100,3.69154333,2509.7,2509.6,2.15918]
[1747568350201,3.69154333,2509.7,2509.6,0.79668]
[1747568350396,4.48819333,2509.7,2509.6,0.79668]
[1747568350699,3.69154333,2509.7,2509.6,0.79668]
[1747568351105,6.74954333,2509.7,2509.6,0.79668]
[1747568351698,4.3737,2509.7,2509.6,0.79668]
[1747568353303,5.17035,2509.7,2509.6,0.79668]
[1747568353504,6.49178837,2509.7,2509.6,0.79668]
[1747568355102,0.79673,2509.5,2509.4,0.79672]
[1747568355301,3.2078,2509.5,2509.4,0.79672]
[1747568355491,4.00452,2509.5,2509.4,0.79672]
[1747568355695,4.5176,2509.5,2509.4,0.79672]
[1747568356004,5.31432,2509.5,2509.4,0.79672]
[1747568356203,9.70302,2509.5,2509.4,0.79672]
[1747568358307,9.70302,2509.5,2508.9,0.6414]
[1747568358308,0.79679,2509.3,2509.2,0.79678]
[1747568359808,2.05177,2509.4,2509.3,0.79678]
[1747568360306,5.10977,2509.4,2509.3,0.88896003]
[1747568361103,4.313,2509.4,2508.9,0.6414]
[1747568361306,0.79683,2509.2,2509.1,0.79681]
[1747568361506,4.00463,2509.2,2509.1,0.79681]
[1747568361813,5.37683,2509.2,2509.1,0.79681]
[1747568362310,0.79689,2509.0,2508.9,0.79688]
[1747568362495,0.7969,2509.0,2508.9,0.79689]
[1747568362702,0.79697,2508.8,2508.7,0.79696]
[1747568362897,0.79699,2508.7,2508.6,0.79698]
[1747568363110,3.43169,2508.7,2508.6,0.79698]
[1747568363807,2.6347,2508.7,2508.4,1.18931087]
[1747568364107,3.2078,2508.5,2508.4,1.18931087]
[1747568364311,0.79711,2508.3,2508.2,0.79712]
[1747568364999,0.79716,2508.1,2508.0,2.81747]
[1747568365205,0.79719,2508.0,2507.9,1.18931087]
[1747568365505,9.89459,2508.0,2507.9,1.18931087]
[1747568366112,12.95259,2508.0,2507.9,1.18931087]
[1747568366409,1.99307,2507.9,2507.4,1.99934124]
[1747568366603,0.79742,2507.3,2507.2,1.390452]
[1747568366911,0.79742,2507.3,2507.0,3.9578396]
[1747568366912,0.79748,2507.1,2507.0,3.9578396]
[1747568367109,0.79748,2507.1,2507.0,4.7553496]
[1747568367110,18.6758,2507.1,2507.0,4.7553496]
[1747568367610,20.75648,2507.1,2507.0,3.9578396]
[1747568368011,20.75648,2507.1,2506.9,0.79753]
[1747568368312,0.79751,2507.0,2506.9,3.058]
[1747568368511,2.08071,2507.0,2506.9,3.058]
[1747568369201,0.79761,2506.7,2506.4,2.66201934]
[1747568369401,3.2078,2506.5,2506.4,3.45971934]
[1747568370012,4.4922,2506.5,2506.4,3.45971934]
[1747568370201,3.2078,2506.5,2506.4,6.51771934]
[1747568370911,15.472,2506.6,2506.5,0.79767]
[1747568371108,15.472,2506.6,2506.5,2.05507]
[1747568371307,16.26964,2506.6,2506.5,3.058]
[1747568371811,21.28564,2506.6,2506.5,3.058]
[1747568372113,0.79767,2506.5,2506.4,1.32451934]
[1747568372316,6.69157,2506.5,2506.4,1.32451934]
[1747568372810,10.8939,2506.5,2505.4,5.20285]
[1747568373001,3.2078,2505.8,2505.6,2.04844]
[1747568373205,10.9478,2505.8,2505.7,0.79792]
[1747568373422,12.2795,2505.8,2505.7,0.79792]
[1747568373916,3.2078,2505.8,2505.7,0.79792]
[1747568374115,10.9478,2505.8,2505.7,0.79792]
[1747568374613,12.2795,2505.8,2505.7,0.79792]
[1747568375407,12.2795,2505.8,2505.6,3.15018003]
[1747568375599,12.2795,2505.8,2505.7,0.79792]
[1747568375805,13.07739,2505.8,2505.7,0.79792]
[1747568376111,12.2795,2505.8,2505.7,0.79792]
[1747568376314,0.79792,2505.7,2505.6,3.15018003]
[1747568376514,1.2611,2505.7,2505.6,3.15018003]
[1747568376708,2.05902,2505.7,2505.6,3.15018003]
[1747568377219,7.05902,2505.7,2505.6,0.09218003]
[1747568378616,17.67302,2505.7,2505.6,0.09218003]
[1747568379111,2.05902,2505.7,2505.6,0.09218003]
[1747568379311,16.8761,2505.7,2505.6,0.89014003]
[1747568379624,1.2611,2505.7,2505.6,2.17554003]
[1747568379805,17.67702,2505.7,2505.6,0.09218003]
[1747568380118,22.67702,2505.7,2505.6,0.09218003]
[1747568380915,0.79817,2505.0,2504.8,0.79818]
[1747568381209,20.90308,2504.9,2504.8,3.058]
[1747568381414,20.90408,2504.9,2504.8,3.058]
[1747568381602,5.26608,2504.9,2504.8,3.058]
[1747568381800,20.91608,2504.9,2504.8,3.058]
[1747568382413,5.26608,2504.9,2504.8,3.058]
[1747568382607,4.4679,2504.9,2504.8,3.058]
[1747568382809,3.2078,2504.9,2504.8,3.85621]
[1747568383012,10.9678,2504.9,2504.8,3.85621]
[1747568383516,3.2078,2504.9,2504.8,3.85621]
[1747568385922,3.2078,2504.9,2504.8,8.85621]
[1747568386416,3.2078,2504.9,2504.8,3.85621]
[1747568387920,4.00598,2504.9,2504.8,3.058]
[1747568388421,5.27568,2504.9,2504.8,3.058]
[1747568389516,5.27568,2504.9,2504.8,3.15018003]
[1747568390624,10.27568,2504.9,2504.8,3.15018003]
[1747568393312,25.96868,2504.9,2504.8,3.15018003]
[1747568393624,20.96868,2504.9,2504.8,3.15018003]
[1747568394326,25.96868,2504.9,2504.8,3.15018003]
[1747568394925,35.67468,2504.9,2504.8,0.08207003]
[1747568395124,35.67468,2504.9,2504.8,3.14007003]
[1747568395125,19.98168,2504.9,2504.8,3.14007003]